fUSD/lending_fUSD_20250811
["ID","MTS","AMOUNT","RATE_DAILY","PERIOD"]
[378560441,1754913074365,-586.841379,0.00016902,2]
[378560442,1754913074375,-586.841379,0.00016902,2]
[378560443,1754913074384,-586.841379,0.00016902,2]
[378560444,1754913074393,-586.841379,0.00016902,2]
[378560445,1754913074403,-151.0,0.00016902,2]
[378560446,1754913074412,-1646.262048,0.00016902,2]
[378560447,1754913074421,-1646.262048,0.00016902,2]
[378560448,1754913074430,-1242.63,0.00016902,2]
[378560449,1754913074439,-1646.262048,0.00016902,2]
[378560450,1754913074449,-1646.262048,0.00016902,2]
[378560451,1754913074458,-1253.107716,0.00016902,2]
[378560452,1754913074468,-10000.0,0.00016902,2]
[378560453,1754913074477,-10000.0,0.00016902,2]
[378560454,1754913074486,-1253.107716,0.00016902,2]
[378560455,1754913074495,-10000.0,0.00016902,2]
[378560456,1754913074505,-10000.0,0.00016902,2]
[378560457,1754913074515,-10000.0,0.00016902,2]
[378560458,1754913074524,-10000.0,0.00016902,2]
[378560459,1754913074534,-151.0,0.00016902,2]
[378560460,1754913074543,-151.0,0.00016902,2]
[378560461,1754913074552,-3932.339301,0.00016902,2]
[378560462,1754913074562,-2399.138981,0.00016902,2]
[378560463,1754913074571,-2399.138981,0.00016902,2]
[378560464,1754913074582,-379.164322,0.00016902,2]
[378560465,1754913074591,-379.164322,0.00016902,2]
[378560466,1754913074603,-379.164322,0.00016902,2]
[378560467,1754913074612,-379.164322,0.00016902,2]
[378560468,1754913074622,-691.460372,0.00016902,2]
[378560469,1754913074631,-691.460372,0.00016902,2]
[378560470,1754913074640,-338.838444,0.00016902,2]
[378560471,1754913074649,-338.838444,0.00016902,2]
[378560472,1754913074659,-1048.866293,0.00016902,2]
[378560473,1754913074669,-1048.866293,0.00016902,2]
[378560474,1754913074678,-151.0,0.00016902,2]
[378560475,1754913074688,-151.0,0.00016902,2]
[378560476,1754913074697,-151.0,0.00016902,2]
[378560477,1754913074706,-151.0,0.00016902,2]
[378560478,1754913074715,-914.903255,0.00016902,2]
[378560479,1754913074724,-914.903255,0.00016902,2]
[378560480,1754913074734,-914.903255,0.00016902,2]
[378560481,1754913074743,-914.903255,0.00016902,2]
[378560482,1754913074752,-261.310503,0.00016902,2]
[378560483,1754913074762,-261.310503,0.00016902,2]
[378560484,1754913074771,-1211.769302,0.00016902,2]
[378560485,1754913074781,-1211.769302,0.00016902,2]
[378560486,1754913074791,-151.0,0.00016902,2]
[378560487,1754913074801,-151.0,0.00016902,2]
[378560488,1754913074810,-172.245218,0.00016902,2]
[378560489,1754913074819,-172.245218,0.00016902,2]
[378560490,1754913074829,-313.356269,0.00016902,2]
[378560491,1754913074838,-313.356269,0.00016902,2]
[378560492,1754913074851,-7822.156241,0.00016902,2]
[378560493,1754913074860,-7822.156241,0.00016902,2]
[378560494,1754913074869,-7822.156241,0.00016902,2]
[378560495,1754913074879,-7822.156241,0.00016902,2]
[378560496,1754913074888,-151.0,0.00016902,2]
[378560497,1754913074897,-151.0,0.00016902,2]
[378560498,1754913074907,-2350.314377,0.00016902,2]
[378560499,1754913074916,-2350.314377,0.00016902,2]
[378560500,1754913074926,-364.417769,0.00016902,2]
[378560501,1754913074935,-364.417769,0.00016902,2]
[378560502,1754913074945,-364.417769,0.00016902,2]
[378560503,1754913074955,-364.417769,0.00016902,2]
[378560504,1754913074964,-806.004397,0.00016902,2]
[378560505,1754913074975,-806.004397,0.00016902,2]
[378560506,1754913074985,-311.8033,0.00016902,2]
[378560507,1754913074994,-311.8033,0.00016902,2]
[378560508,1754913075004,-151.0,0.00016902,2]
[378560509,1754913075014,-306.834118,0.00016902,2]
[378560510,1754913075024,-306.834118,0.00016902,2]
[378560511,1754913075034,-575.31,0.00016902,2]
[378560512,1754913075044,-151.0,0.00016902,2]
[378560513,1754913075054,-500.0,0.00016902,2]
[378560514,1754913075064,-151.0,0.00016902,2]
[378560515,1754913075074,-4172.867181,0.00016902,2]
[378560516,1754913075084,-4172.867181,0.00016902,2]
[378560517,1754913075094,-2206.677674,0.00016902,2]
[378560518,1754913075106,-2206.677674,0.00016902,2]
[378560519,1754913075116,-360.809461,0.00016902,2]
[378560520,1754913075219,-360.809461,0.00016902,2]
[378560521,1754913075229,-249.372785,0.00016902,2]
[378560522,1754913075243,-249.372785,0.00016902,2]
[378560523,1754913075253,-249.372785,0.00016902,2]
[378560524,1754913075263,-249.372785,0.00016902,2]
[378560525,1754913075272,-732.835776,0.00016902,2]
[378560526,1754913075283,-732.835776,0.00016902,2]
[378560527,1754913075292,-287.257386,0.00016902,2]
[378560528,1754913075302,-287.257386,0.00016902,2]
[378560529,1754913075311,-345.624,0.00016902,2]
[378560530,1754913075321,-345.624,0.00016902,2]
[378560531,1754913075331,-279.810865,0.00016902,2]
[378560532,1754913075340,-279.810865,0.00016902,2]
[378560533,1754913075353,-169.184007,0.00016902,2]
[378560534,1754913075362,-169.184007,0.00016902,2]
[378560535,1754913075371,-151.0,0.00016902,2]
[378560536,1754913075381,-151.0,0.00016902,2]
[378560537,1754913075390,-722.059711,0.00016902,2]
[378560538,1754913075399,-722.059711,0.00016902,2]
[378560539,1754913075408,-10000.0,0.00016902,2]
[378560540,1754913075416,-10000.0,0.00016902,2]
[378560541,1754913075425,-10000.0,0.00016902,2]
[378560542,1754913075434,-562.74,0.00016902,2]
[378560543,1754913075440,-2677.925587,0.00016903,2]
[378560544,1754913075448,-2677.925587,0.00016903,2]
[378560545,1754913075456,-1278.286218,0.00016903,2]
[378560546,1754913075464,-1278.286218,0.00016903,2]
[378560547,1754913075473,-1182.126922,0.00016903,2]
[378560548,1754913075483,-1182.126922,0.00016903,2]
[378560549,1754913075492,-151.0,0.00016903,2]
[378560550,1754913075502,-1182.126922,0.00016903,2]
[378560551,1754913075512,-162.28517,0.00016903,2]
[378560552,1754913075522,-1182.126922,0.00016903,2]
[378560553,1754913075531,-402.752787,0.00016903,2]
[378560554,1754913075541,-402.752787,0.00016903,2]
[378560555,1754913075552,-1183.01629,0.00016903,2]
[378560556,1754913075562,-1183.01629,0.00016903,2]
[378560557,1754913075572,-353.932149,0.00016903,2]
[378560558,1754913075582,-353.932149,0.00016903,2]
[378560559,1754913075592,-698.232335,0.00016903,2]
[378560560,1754913075603,-698.232335,0.00016903,2]
[378560561,1754913075613,-817.090114,0.00016903,2]
[378560562,1754913075622,-817.090114,0.00016903,2]
[378560563,1754913075631,-1666.659554,0.00016903,2]
[378560564,1754913075640,-1666.659554,0.00016903,2]
[378560565,1754913075650,-151.0,0.00016903,2]
[378560566,1754913075658,-1646.262048,0.00016903,2]
[378560567,1754913075668,-1646.262048,0.00016903,2]
[378560568,1754913075678,-1253.107716,0.00016903,2]
[378560569,1754913075688,-1253.107716,0.00016903,2]
[378560570,1754913075697,-151.0,0.00016903,2]
[378560571,1754913075706,-1048.866293,0.00016903,2]
[378560572,1754913075715,-1048.866293,0.00016903,2]
[378560573,1754913075725,-151.0,0.00016903,2]
[378560574,1754913075735,-260.79436,0.00016903,2]
[378560575,1754913075743,-261.310503,0.00016903,2]
[378560576,1754913075753,-261.310503,0.00016903,2]
[378560577,1754913075762,-1211.769302,0.00016903,2]
[378560578,1754913075771,-1211.769302,0.00016903,2]
[378560579,1754913075781,-313.356269,0.00016903,2]
[378560580,1754913075790,-313.356269,0.00016903,2]
[378560581,1754913075799,-150.0,0.00016903,2]
[378560582,1754913075809,-150.0,0.00016903,2]
[378560583,1754913075818,-150.0,0.00016903,2]
[378560584,1754913075827,-500.0,0.00016903,2]
[378560585,1754913075836,-500.0,0.00016903,2]
[378560586,1754913075845,-150.0,0.00016903,2]
[378560587,1754913075857,-150.0,0.00016903,2]
[378560588,1754913075866,-150.0,0.00016903,2]
[378560589,1754913075877,-150.88115052,0.00016903,2]
[378560590,1754913075886,-150.0,0.00016903,2]
[378560591,1754913075895,-162.582376,0.00016903,2]
[378560592,1754913075905,-162.582376,0.00016903,2]
[378560593,1754913075914,-2350.314377,0.00016903,2]
[378560594,1754913075923,-2350.314377,0.00016903,2]
[378560595,1754913075932,-806.004397,0.00016903,2]
[378560596,1754913075941,-806.004397,0.00016903,2]
[378560597,1754913075950,-311.8033,0.00016903,2]
[378560598,1754913075959,-457.345272,0.00016903,2]
[378560599,1754913075968,-311.8033,0.00016903,2]
[378560600,1754913075978,-457.345272,0.00016903,2]
[378560601,1754913075987,-151.0,0.00016903,2]
[378560602,1754913075996,-150.0,0.00016903,2]
[378560603,1754913076007,-150.98953511,0.00016903,2]
[378560604,1754913076016,-500.0,0.00016903,2]
[378560605,1754913076025,-150.0,0.00016903,2]
[378560606,1754913076035,-150.0,0.00016903,2]
[378560607,1754913076044,-150.0,0.00016903,2]
[378560608,1754913076054,-150.0,0.00016903,2]
[378560609,1754913076064,-150.0,0.00016903,2]
[378560610,1754913076073,-150.0,0.00016903,2]
[378560611,1754913076083,-500.0,0.00016903,2]
[378560612,1754913076093,-500.0,0.00016903,2]
[378560613,1754913076105,-153.018705,0.00016903,2]
[378560614,1754913076114,-155.42845499,0.00016903,2]
[378560615,1754913076123,-154.86918515,0.00016903,2]
[378560616,1754913076132,-500.0,0.00016903,2]
[378560617,1754913076142,-500.0,0.00016903,2]
[378560618,1754913076151,-150.0,0.00016903,2]
[378560619,1754913076161,-150.0,0.00016903,2]
[378560620,1754913076170,-500.0,0.00016903,2]
[378560621,1754913076180,-500.0,0.00016903,2]
[378560622,1754913076189,-317.19,0.00016904,2]
[378560623,1754913076199,-5888.0,0.00016911,2]
[378560624,1754913076208,-168.13,0.00016915,2]
[378560625,1754913076218,-162.89464287,0.0001692,2]
[378560626,1754913076228,-151.0,0.00016921,2]
[378560627,1754913076241,-402.752787,0.00016921,2]
[378560628,1754913076250,-402.752787,0.00016921,2]
[378560629,1754913076260,-151.0,0.00016921,2]
[378560630,1754913076270,-248.441228,0.00016921,2]
[378560631,1754913076282,-500.0,0.00016921,2]
[378560632,1754913076292,-995.24,0.00016921,2]
[378560633,1754913076301,-667.36,0.00016921,2]
[378560634,1754913076311,-345.624,0.00016921,2]
[378560635,1754913076323,-345.624,0.00016921,2]
[378560636,1754913076333,-500.0,0.00016921,2]
[378560637,1754913076343,-671.9,0.00016921,2]
[378560638,1754913076354,-3179.72,0.00016921,2]
[378560639,1754913076364,-411.4133562,0.00016922,2]
[378560640,1754913076373,-1278.286218,0.00016922,2]
[378560641,1754913076383,-1278.286218,0.00016922,2]
[378560642,1754913076393,-1183.01629,0.00016922,2]
[378560643,1754913076403,-1183.01629,0.00016922,2]
[378560644,1754913076412,-817.090114,0.00016922,2]
[378560645,1754913076422,-817.090114,0.00016922,2]
[378560646,1754913076431,-1646.262048,0.00016922,2]
[378560647,1754913076440,-1646.262048,0.00016922,2]
[378560648,1754913076449,-151.0,0.00016922,2]
[378560649,1754913076458,-151.0,0.00016922,2]
[378560650,1754913076467,-287.257386,0.00016922,2]
[378560651,1754913076477,-287.257386,0.00016922,2]
[378560652,1754913076486,-279.810865,0.00016922,2]
[378560653,1754913076496,-279.810865,0.00016922,2]
[378560654,1754913076506,-1000.0,0.00016922,2]
[378560655,1754913076515,-151.0,0.00016922,2]
[378560656,1754913076527,-151.0,0.00016922,2]
[378560657,1754913076536,-1000.0,0.00016923,2]
[378560658,1754913076546,-150.0,0.00016926,2]
[378560659,1754913076555,-150.0,0.0001693,2]
[378560660,1754913076564,-321.73,0.00016943,2]
[378560661,1754913076573,-1000.0,0.0001695,2]
[378560662,1754913076582,-2267.41341875,0.00016953,2]
[378560663,1754913076592,-150.0,0.00016953,2]
[378560664,1754913076602,-150.0,0.00016959,2]
[378560665,1754913076612,-5888.0,0.00016965,2]
[378560666,1754913076621,-10000.0,0.00016973,2]
[378560667,1754913076631,-10000.0,0.00016973,2]
[378560668,1754913076640,-10000.0,0.00016973,2]
[378560669,1754913076650,-277.024127,0.00016977,2]
[378560670,1754913076659,-277.024127,0.00016977,2]
[378560671,1754913076669,-158.92337,0.00016977,2]
[378560672,1754913076679,-158.92337,0.00016977,2]
[378560673,1754913076689,-150.0,0.00016977,2]
[378560674,1754913076700,-5888.0,0.00016977,2]
[378560675,1754913076710,-500.0,0.00016978,2]
[378560676,1754913076719,-2500.0,0.00016978,2]
[378560677,1754913076729,-1000.0,0.00016978,5]
[378560678,1754913076738,-187.6556303,0.00016983,2]
[378560679,1754913076747,-150.0,0.00016983,2]
[378560680,1754913076757,-150.0,0.00016987,2]
[378560681,1754913076766,-420.0,0.00016991,2]
[378560682,1754913076775,-500.0,0.00016992,2]
[378560683,1754913076785,-2500.0,0.00016992,2]
[378560684,1754913076794,-1000.0,0.00016992,5]
[378560685,1754913076803,-150.0,0.00016998,2]
[378560686,1754913076812,-525.43149429,0.00016998,2]
[378560687,1754913076822,-500.0,0.00016999,2]
[378560688,1754913076831,-300.0,0.00017,2]
[378560689,1754913076840,-150.0,0.00017005,2]
[378560690,1754913076851,-5888.0,0.00017013,2]
[378560691,1754913076860,-2267.41341875,0.00017015,2]
[378560692,1754913076870,-150.0,0.00017021,2]
[378560693,1754913076879,-1000.0,0.00017035,2]
[378560694,1754913076889,-241.30913461,0.00017035,2]
[378560695,1754913076899,-150.0,0.00017037,2]
[378560696,1754913076908,-160.0,0.00017039,2]
[378560697,1754913076917,-842.86497659,0.00017039,2]
[378560698,1754913076927,-457.87080987,0.00017039,2]
[378560699,1754913076936,-211.73953792,0.00017039,2]
[378560700,1754913076946,-150.0,0.00017039,2]
[378560701,1754913076955,-150.0,0.00017039,2]
[378560702,1754913076964,-5888.0,0.00017053,2]
[378560703,1754913076974,-193.24,0.00017065,2]
[378560704,1754913076983,-1443.502461,0.00017068,2]
[378560705,1754913076992,-1443.502461,0.00017068,2]
[378560706,1754913077001,-331.44995402,0.00017074,2]
[378560707,1754913077010,-150.0,0.00017074,2]
[378560708,1754913077020,-232.22201655,0.00017074,2]
[378560709,1754913077029,-151.18713692,0.00017074,2]
[378560710,1754913077038,-187.15028235,0.00017074,2]
[378560711,1754913077047,-2267.41341875,0.00017076,2]
[378560712,1754913077057,-1680.0,0.00017077,2]
[378560713,1754913077067,-150.0,0.0001708,2]
[378560714,1754913077076,-150.0,0.00017081,2]
[378560715,1754913077085,-150.0,0.00017082,2]
[378560716,1754913077094,-150.0,0.0001709,2]
[378560717,1754913077104,-986.42,0.00017096,2]
[378560718,1754913077114,-150.0,0.00017096,2]
[378560719,1754913077124,-5888.0,0.00017115,2]
[378560720,1754913077133,-300.0,0.00017128,2]
[378560721,1754913077143,-1807.8932486,0.00017129,2]
[378560722,1754913077152,-150.0,0.0001713,2]
[378560723,1754913077161,-150.0,0.00017132,2]
[378560724,1754913077171,-150.0,0.00017132,2]
[378560725,1754913077181,-150.0,0.00017132,2]
[378560726,1754913077190,-150.0,0.00017132,2]
[378560727,1754913077199,-1251.129203,0.00017136,2]
[378560728,1754913077208,-1251.129203,0.00017136,2]
[378560729,1754913077217,-10000.0,0.00017136,2]
[378560730,1754913077226,-10000.0,0.00017136,2]
[378560731,1754913077236,-10000.0,0.00017136,2]
[378560732,1754913077248,-379.164322,0.00017136,2]
[378560733,1754913077258,-379.164322,0.00017136,2]
[378560734,1754913077267,-151.0,0.00017136,2]
[378560735,1754913077277,-914.903255,0.00017136,2]
[378560736,1754913077287,-914.903255,0.00017136,2]
[378560737,1754913077295,-261.310503,0.00017136,2]
[378560738,1754913077305,-261.310494,0.00017136,2]
[378560739,1754913077314,-313.356269,0.00017136,2]
[378560740,1754913077324,-313.356268,0.00017136,2]
[378560741,1754913077333,-7822.156241,0.00017136,2]
[378560742,1754913077343,-7822.156241,0.00017136,2]
[378560743,1754913077353,-2350.314377,0.00017136,2]
[378560744,1754913077362,-2350.314386,0.00017136,2]
[378560745,1754913077371,-364.417769,0.00017136,2]
[378560746,1754913077380,-364.417769,0.00017136,2]
[378560747,1754913077389,-806.004397,0.00017136,2]
[378560748,1754913077399,-806.004394,0.00017136,2]
[378560749,1754913077408,-178.140989,0.00017136,2]
[378560750,1754913077418,-178.140989,0.00017136,2]
[378560751,1754913077427,-151.0,0.00017136,2]
[378560752,1754913077436,-249.372785,0.00017136,2]
[378560753,1754913077446,-249.372785,0.00017136,2]
[378560754,1754913077455,-150.0,0.00017136,2]
[378560755,1754913077464,-150.0,0.00017145,2]
[378560756,1754913077474,-150.0,0.00017146,2]
[378560757,1754913077483,-208.69086539,0.00017146,2]
[378560758,1754913077492,-150.0,0.00017148,2]
[378560759,1754913077502,-158.91,0.00017161,2]
[378560760,1754913077510,-600.0,0.00017161,2]
[378560761,1754913077519,-600.0,0.00017161,2]
[378560762,1754913077529,-600.0,0.00017161,2]
[378560763,1754913077538,-600.0,0.00017161,2]
[378560764,1754913077547,-600.0,0.00017161,2]
[378560765,1754913077557,-536.52,0.00017161,2]
[378560766,1754913077566,-150.0,0.00017169,2]
[378560767,1754913077576,-400.0,0.0001717,2]
[378560768,1754913077585,-400.0,0.0001717,2]
[378560769,1754913077594,-400.0,0.0001717,2]
[378560770,1754913077605,-914.13,0.0001717,2]
[378560771,1754913077614,-1959.51,0.0001717,2]
[378560772,1754913077623,-563.57,0.0001717,2]
[378560773,1754913077632,-1025.43,0.0001717,2]
[378560774,1754913077642,-6046.7934407,0.00017171,2]
[378560775,1754913077651,-400.0,0.00017171,2]
[378560776,1754913077659,-486.72,0.00017171,2]
[378560777,1754913077669,-400.0,0.00017171,2]
[378560778,1754913077678,-400.0,0.00017171,2]
[378560779,1754913077687,-400.0,0.00017171,2]
[378560780,1754913077696,-400.0,0.00017171,2]
[378560781,1754913077705,-400.0,0.00017171,2]
[378560782,1754913077715,-407.83,0.00017171,2]
[378560783,1754913077725,-400.0,0.00017171,2]
[378560784,1754913077734,-400.0,0.00017171,2]
[378560785,1754913077743,-182.85040271,0.00017171,2]
[378560786,1754913077753,-400.0,0.00017171,2]
[378560787,1754913077762,-885.25,0.00017171,2]
[378560788,1754913077771,-400.0,0.00017171,2]
[378560789,1754913077780,-782.6,0.00017171,2]
[378560790,1754913077790,-400.0,0.00017171,2]
[378560791,1754913077801,-400.0,0.00017171,2]
[378560792,1754913077811,-539.02,0.00017171,2]
[378560793,1754913077820,-516.56,0.00017171,2]
[378560794,1754913077829,-767.57,0.00017171,2]
[378560795,1754913077839,-682.78,0.00017171,2]
[378560796,1754913077848,-381.6861853,0.00017171,2]
[378560797,1754913077859,-400.0,0.00017171,2]
[378560798,1754913077869,-1077.9,0.00017171,2]
[378560799,1754913077878,-1847.71,0.00017171,2]
[378560800,1754913077888,-1572.94,0.00017171,2]
[378560801,1754913077899,-629.18,0.00017171,2]
[378560802,1754913077908,-400.0,0.00017171,2]
[378560803,1754913077917,-717.66,0.00017171,2]
[378560804,1754913077926,-400.0,0.00017171,2]
[378560805,1754913077935,-486.47,0.00017171,2]
[378560806,1754913077945,-455.37,0.00017171,2]
[378560807,1754913077954,-1360.56,0.00017171,2]
[378560808,1754913077963,-862.74,0.00017171,2]
[378560809,1754913077972,-1924.52,0.00017171,2]
[378560810,1754913077981,-400.0,0.00017171,2]
[378560811,1754913077991,-2103.16,0.00017171,2]
[378560812,1754913078000,-650.99,0.00017171,2]
[378560813,1754913078009,-400.0,0.00017171,2]
[378560814,1754913078018,-400.0,0.00017171,2]
[378560815,1754913078027,-535.63,0.00017171,2]
[378560816,1754913078038,-450.63,0.00017171,2]
[378560817,1754913078048,-551.93,0.00017171,2]
[378560818,1754913078058,-400.0,0.00017171,2]
[378560819,1754913078068,-400.0,0.00017171,2]
[378560820,1754913078078,-1110.75,0.00017171,2]
[378560821,1754913078087,-616.85,0.00017171,2]
[378560822,1754913078096,-3665.68,0.00017171,2]
[378560823,1754913078108,-400.0,0.00017171,2]
[378560824,1754913078118,-400.0,0.00017171,2]
[378560825,1754913078128,-538.73,0.00017171,2]
[378560826,1754913078137,-1238.34,0.00017171,2]
[378560827,1754913078147,-400.0,0.00017171,2]
[378560828,1754913078157,-400.0,0.00017171,2]
[378560829,1754913078167,-1103.47,0.00017171,2]
[378560830,1754913078176,-1832.23,0.00017171,2]
[378560831,1754913078186,-400.0,0.00017171,2]
[378560832,1754913078195,-400.0,0.00017171,2]
[378560833,1754913078205,-400.0,0.00017171,2]
[378560834,1754913078215,-400.0,0.00017171,2]
[378560835,1754913078225,-667.01,0.00017171,2]
[378560836,1754913078235,-440.49423903,0.00017171,2]
[378560837,1754913078248,-531.31,0.00017171,2]
[378560838,1754913078258,-400.0,0.00017171,2]
[378560839,1754913078267,-3599.22,0.00017171,2]
[378560840,1754913078278,-400.0,0.00017171,2]
[378560841,1754913078289,-270.42955711,0.00017171,2]
[378560842,1754913078299,-3965.48,0.00017171,2]
[378560843,1754913078309,-400.0,0.00017171,2]
[378560844,1754913078317,-763.33,0.00017171,2]
[378560845,1754913078326,-520.03149884,0.00017171,2]
[378560846,1754913078335,-2315.63,0.00017171,2]
[378560847,1754913078342,-513.17,0.00017171,2]
[378560848,1754913078352,-1032.43,0.00017171,2]
[378560849,1754913078361,-2928.22,0.00017171,2]
[378560850,1754913078370,-625.35,0.00017171,2]
[378560851,1754913078380,-400.0,0.00017171,2]
[378560852,1754913078390,-1951.78,0.00017171,2]
[378560853,1754913078400,-400.0,0.00017171,2]
[378560854,1754913078411,-1219.07,0.00017171,2]
[378560855,1754913078421,-400.0,0.00017171,2]
[378560856,1754913078431,-400.0,0.00017171,2]
[378560857,1754913078441,-400.0,0.00017171,2]
[378560858,1754913078451,-400.0,0.00017171,2]
[378560859,1754913078462,-400.0,0.00017171,2]
[378560860,1754913078472,-1039.56,0.00017171,2]
[378560861,1754913078481,-1303.97,0.00017171,2]
[378560862,1754913078491,-523.81002353,0.00017171,2]
[378560863,1754913078501,-617.95,0.00017171,2]
[378560864,1754913078511,-602.38,0.00017171,2]
[378560865,1754913078521,-5755.72,0.00017171,2]
[378560866,1754913078531,-401.58,0.00017171,2]
[378560867,1754913078541,-400.0,0.00017171,2]
[378560868,1754913078551,-783.72,0.00017171,2]
[378560869,1754913078561,-400.0,0.00017171,2]
[378560870,1754913078572,-400.0,0.00017171,2]
[378560871,1754913078582,-400.0,0.00017171,2]
[378560872,1754913078592,-400.0,0.00017171,2]
[378560873,1754913078604,-400.0,0.00017171,2]
[378560874,1754913078614,-400.0,0.00017171,2]
[378560875,1754913078623,-1955.89,0.00017171,2]
[378560876,1754913078634,-416.09198416,0.00017171,2]
[378560877,1754913078643,-1996.46,0.00017171,2]
[378560878,1754913078653,-479.01,0.00017171,2]
[378560879,1754913078662,-1475.85,0.00017171,2]
[378560880,1754913078672,-447.09,0.00017171,2]
[378560881,1754913078682,-400.0,0.00017171,2]
[378560882,1754913078693,-578.81,0.00017171,2]
[378560883,1754913078702,-400.0,0.00017171,2]
[378560884,1754913078712,-791.98,0.00017171,2]
[378560885,1754913078722,-2675.98,0.00017171,2]
[378560886,1754913078731,-1152.081676,0.00017171,2]
[378560887,1754913078741,-400.0,0.00017171,2]
[378560888,1754913078751,-497.831891,0.00017171,2]
[378560889,1754913078760,-400.0,0.00017171,2]
[378560890,1754913078769,-400.0,0.00017171,2]
[378560891,1754913078778,-400.0,0.00017171,2]
[378560892,1754913078788,-470.78,0.00017171,2]
[378560893,1754913078797,-696.81,0.00017171,2]
[378560894,1754913078806,-6727.5,0.00017171,2]
[378560895,1754913078816,-1016.93,0.00017171,2]
[378560896,1754913078826,-400.0,0.00017171,2]
[378560897,1754913078836,-400.0,0.00017171,2]
[378560898,1754913078845,-529.01,0.00017171,2]
[378560899,1754913078856,-610.99,0.00017171,2]
[378560900,1754913078866,-400.0,0.00017171,2]
[378560901,1754913078875,-5623.33,0.00017171,2]
[378560902,1754913078885,-1089.579135,0.00017171,2]
[378560903,1754913078895,-546.53,0.00017171,2]
[378560904,1754913078905,-400.0,0.00017171,2]
[378560905,1754913078915,-400.0,0.00017171,2]
[378560906,1754913078924,-400.0,0.00017171,2]
[378560907,1754913078934,-400.0,0.00017171,2]
[378560908,1754913078943,-400.0,0.00017171,2]
[378560909,1754913078953,-400.0,0.00017171,2]
[378560910,1754913078963,-562.74,0.00017171,2]
[378560911,1754913078973,-536.1,0.00017171,2]
[378560912,1754913078983,-790.77,0.00017171,2]
[378560913,1754913078993,-895.23,0.00017171,2]
[378560914,1754913079003,-2711.02,0.00017171,2]
[378560915,1754913079012,-151.129737,0.00017171,2]
[378560916,1754913079022,-487.57,0.00017171,2]
[378560917,1754913079032,-430.31771866,0.00017171,2]
[378560918,1754913079042,-400.0,0.00017171,2]
[378560919,1754913079052,-1287.58,0.00017171,2]
[378560920,1754913079063,-403.33223723,0.00017171,2]
[378560921,1754913079073,-532.2,0.00017171,2]
[378560922,1754913079083,-709.95,0.00017171,2]
[378560923,1754913079093,-1341.71,0.00017171,2]
[378560924,1754913079106,-400.0,0.00017171,2]
[378560925,1754913079117,-7405.77,0.00017171,2]
[378560926,1754913079128,-400.0,0.00017172,2]
[378560927,1754913079138,-411.4,0.00017172,2]
[378560928,1754913079149,-1472.06,0.00017172,2]
[378560929,1754913079160,-604.88,0.00017172,2]
[378560930,1754913079170,-505.49,0.00017172,2]
[378560931,1754913079181,-879.62,0.00017172,2]
[378560932,1754913079191,-400.0,0.00017172,2]
[378560933,1754913079201,-829.69,0.00017172,2]
[378560934,1754913079211,-515.07,0.00017172,2]
[378560935,1754913079221,-659.98,0.00017172,2]
[378560936,1754913079231,-323.18422604,0.00017172,2]
[378560937,1754913079246,-402.79102138,0.00017172,2]
[378560938,1754913079256,-400.0,0.00017172,2]
[378560939,1754913079266,-771.45,0.00017172,2]
[378560940,1754913079276,-400.0,0.00017172,2]